Workbook

Sheet 設計
B1: 設計変数名 | C1: 変数値 | D1: 目的関数値 | F1: 制約関数値
A2: C | B2: varTag | C2: varVal | D2: comment | E2: objVal | F2: comment | G2: constrVal
B3: x1 | C3: 44 | D3: 鋼材量[t] | E3: =【出力】鋼材量!$A$3*0.0000078 -> 1.6647696 | F3: 許容 応力度比 DL | G3: =【出力】応力度!$K$3*1.5 -> 0.5565883003 | H3: ≦1 | I3: EG1
B4: x2 | C4: 24 | G4: =【出力】応力度!$K$4*1.5 -> 0.5565883003 | H4: ≦1 | I4: EG2
G5: =【出力】応力度!$K$5*1.5 -> 0.3610036829 | H5: ≦1 | I5: EC1
G6: =【出力】応力度!$K$6*1.5 -> 0.3610036829 | H6: ≦1 | I6: EC2
F7: 許容 応力度比 DL+EX | G7: =【出力】応力度!$K$7 -> 0.3714526752 | H7: ≦1 | I7: EG1
G8: =【出力】応力度!$K$8 -> 0.6728884534 | H8: ≦1 | I8: EG2
G9: =【出力】応力度!$K$9 -> 0.03687391754 | H9: ≦1 | I9: EC1
G10: =【出力】応力度!$K$10 -> 0.4743509995 | H10: ≦1 | I10: EC2
F11: 変形 | G11: =(【出力】節点変位!$C$9/500-1/200) -> -0.0001200495115 | H11: ≦0 | I11: N2
F12: 崩壊形 | G12: =(【出力】断面!$K$3-【出力】断面!$K$4) -> -383.262 | H12: ≦0

Sheet list1
B1: no. | C1: 規格 | D1: H | E1: B | F1: t1 | G1: t2 | H1: A | I1: Ix | J1: Zx | K1: Zpx
B2: 1 | C2: H | D2: 148 | E2: 100 | F2: 6 | G2: 9 | H2: =(D2*E2-(E2-F2)*(D2-2*G2))/100 -> 25.8 | I2: =(D2^3*E2-(E2-F2)*(D2-2*G2)^3)/12/10000 -> 980.51 | J2: =I2/(D2/2)*10 -> 132.5013514 | K2: =(E2*G2*(D2-G2)+(D2-2*G2)*F2*(D2-2*G2)/4)/1000 -> 150.45
B3: 2 | C3: H | D3: 194 | E3: 150 | F3: 6 | G3: 9 | H3: =(D3*E3-(E3-F3)*(D3-2*G3))/100 -> 37.56 | I3: =(D3^3*E3-(E3-F3)*(D3-2*G3)^3)/12/10000 -> 2584.5988 | J3: =I3/(D3/2)*10 -> 266.4534845 | K3: =(E3*G3*(D3-G3)+(D3-2*G3)*F3*(D3-2*G3)/4)/1000 -> 296.214
B4: 3 | C4: H | D4: 244 | E4: 175 | F4: 7 | G4: 11 | H4: 54.04 | I4: 5867.426133 | J4: 480.9365683 | K4: 534.772
B5: 4 | C5: H | D5: 294 | E5: 200 | F5: 8 | G5: 12 | H5: 69.6 | I5: 10860.84 | J5: 738.8326531 | K5: 822.6
B6: 5 | C6: H | D6: 340 | E6: 250 | F6: 9 | G6: 14 | H6: 98.08 | I6: 20887.58293 | J6: 1228.681349 | K6: 1360.024
B7: 6 | C7: H | D7: 390 | E7: 300 | F7: 10 | G7: 16 | H7: 131.8 | I7: 37414.27933 | J7: 1918.680991 | K7: 2115.61
B8: 7 | C8: H | D8: 440 | E8: 300 | F8: 11 | G8: 18 | H8: 152.44 | I8: 54156.27253 | J8: 2461.648752 | K8: 2727.644
B9: 8 | C9: H | D9: 488 | E9: 300 | F9: 11 | G9: 18 | H9: 157.72 | I9: 68137.15573 | J9: 2792.506383 | K9: 3099.836
B10: 9 | C10: H | D10: 588 | E10: 300 | F10: 12 | G10: 20 | H10: 185.76 | I10: 113283.8592 | J10: 3853.19249 | K10: 4308.912
B11: 10 | C11: H | D11: 700 | E11: 300 | F11: 13 | G11: 24 | H11: 228.76 | I11: 194606.9925 | J11: 5560.199787 | K11: 6248.788
B12: 11 | C12: H | D12: 800 | E12: 300 | F12: 14 | G12: 26 | H12: 260.72 | I12: 282553.5691 | J12: 7063.839227 | K12: 7995.464
B13: 12 | C13: H | D13: 890 | E13: 299 | F13: 15 | G13: 23 | H13: 264.14 | I13: 333680.3429 | J13: 7498.434671 | K13: 8633.619
B14: 13 | C14: H | D14: 900 | E14: 300 | F14: 16 | G14: 28 | H14: 303.04 | I14: 399632.5845 | J14: 8880.724101 | K14: 10174.144
B15: 14 | C15: H | D15: 912 | E15: 302 | F15: 18 | G15: 34 | H15: 357.28 | I15: 486151.4133 | J15: 10661.2152 | K15: 12220.816
B16: 15 | C16: H | D16: 918 | E16: 303 | F16: 19 | G16: 37 | H16: 384.58 | I16: 530524.6803 | J16: 11558.2719 | K16: 13260.487
B17: 16 | C17: H | D17: 150 | E17: 75 | F17: 5 | G17: 7 | H17: 17.3 | I17: 642.0256667 | J17: 85.60342222 | K17: 98.195
B18: 17 | C18: H | D18: 175 | E18: 90 | F18: 5 | G18: 8 | H18: 22.35 | I18: 1172.258625 | J18: 133.9724143 | K18: 151.84125
B19: 18 | C19: H | D19: 200 | E19: 100 | F19: 5.5 | G19: 8 | H19: 26.12 | I19: 1760.932267 | J19: 176.0932267 | K19: 200.152
B20: 19 | C20: H | D20: 250 | E20: 125 | F20: 6 | G20: 9 | H20: 36.42 | I20: 3892.9334 | J20: 311.434672 | K20: 351.861
B21: 20 | C21: H | D21: 300 | E21: 150 | F21: 6.5 | G21: 9 | H21: 45.33 | I21: 6932.5191 | J21: 462.16794 | K21: 522.0765
B22: 21 | C22: H | D22: 350 | E22: 175 | F22: 7 | G22: 11 | H22: 61.46 | I22: 13123.46887 | J22: 749.9125067 | K22: 840.847
B23: 22 | C23: H | D23: 400 | E23: 200 | F23: 8 | G23: 13 | H23: 81.92 | I23: 22964.86827 | J23: 1148.243413 | K23: 1285.952
B24: 23 | C24: H | D24: 450 | E24: 200 | F24: 9 | G24: 14 | H24: 93.98 | I24: 32258.94527 | J24: 1433.730901 | K24: 1621.489
B25: 24 | C25: H | D25: 500 | E25: 200 | F25: 10 | G25: 16 | H25: 110.8 | I25: 46036.54933 | J25: 1841.461973 | K25: 2096.36
B26: 25 | C26: H | D26: 600 | E26: 200 | F26: 11 | G26: 17 | H26: 130.26 | I26: 74418.6438 | J26: 2480.62146 | K26: 2863.179
B27: 26 | C27: H | D27: 400 | E27: 200 | F27: 9 | G27: 12 | H27: 81.84 | I27: 22057.8432 | J27: 1102.89216 | K27: 1249.296
B28: 27 | C28: H | D28: 400 | E28: 200 | F28: 9 | G28: 16 | H28: 97.12 | I28: 27344.31573 | J28: 1367.215787 | K28: 1533.504
B29: 28 | C29: H | D29: 400 | E29: 200 | F29: 9 | G29: 19 | H29: 108.58 | I29: 31161.29793 | J29: 1558.064897 | K29: 1742.649
B30: 29 | C30: H | D30: 400 | E30: 200 | F30: 9 | G30: 22 | H30: 120.04 | I30: 34853.82453 | J30: 1742.691227 | K30: 1948.356
B31: 30 | C31: H | D31: 400 | E31: 200 | F31: 12 | G31: 22 | H31: 130.72 | I31: 35981.77493 | J31: 1799.088747 | K31: 2043.408
B32: 31 | C32: H | D32: 450 | E32: 200 | F32: 9 | G32: 12 | H32: 86.34 | I32: 28825.1982 | J32: 1281.11992 | K32: 1459.521
B33: 32 | C33: H | D33: 450 | E33: 200 | F33: 9 | G33: 16 | H33: 101.62 | I33: 35628.21073 | J33: 1583.476033 | K33: 1781.929
B34: 33 | C34: H | D34: 450 | E34: 200 | F34: 9 | G34: 19 | H34: 113.08 | I34: 40562.54293 | J34: 1802.779686 | K34: 2019.724
B35: 34 | C35: H | D35: 450 | E35: 200 | F35: 9 | G35: 22 | H35: 124.54 | I35: 45355.22953 | J35: 2015.787979 | K35: 2254.081
B36: 35 | C36: H | D36: 450 | E36: 200 | F36: 12 | G36: 19 | H36: 125.44 | I36: 42310.90613 | J36: 1880.484717 | K36: 2147.032
B37: 36 | C37: H | D37: 450 | E37: 200 | F37: 12 | G37: 22 | H37: 136.72 | I37: 47028.31493 | J37: 2090.14733 | K37: 2377.708
B38: 37 | C38: H | D38: 450 | E38: 200 | F38: 12 | G38: 25 | H38: 148 | I38: 51608.33333 | J38: 2293.703704 | K38: 2605
B39: 38 | C39: H | D39: 450 | E39: 250 | F39: 9 | G39: 16 | H39: 117.62 | I39: 43165.86407 | J39: 1918.482847 | K39: 2129.129
B40: 39 | C40: H | D40: 450 | E40: 250 | F40: 9 | G40: 19 | H40: 132.08 | I40: 49391.90627 | J40: 2195.195834 | K40: 2429.174
B41: 40 | C41: H | D41: 450 | E41: 250 | F41: 9 | G41: 22 | H41: 146.54 | I41: 55439.22287 | J41: 2463.965461 | K41: 2724.881
B42: 41 | C42: H | D42: 450 | E42: 250 | F42: 12 | G42: 22 | H42: 158.72 | I42: 57112.30827 | J42: 2538.324812 | K42: 2848.508
B43: 42 | C43: H | D43: 450 | E43: 250 | F43: 12 | G43: 25 | H43: 173 | I43: 62910.41667 | J43: 2796.018519 | K43: 3136.25
B44: 43 | C44: H | D44: 450 | E44: 250 | F44: 12 | G44: 28 | H44: 187.28 | I44: 68537.16507 | J44: 3046.096225 | K44: 3419.708
B45: 44 | C45: H | D45: 500 | E45: 200 | F45: 9 | G45: 12 | H45: 90.84 | I45: 36671.8032 | J45: 1466.872128 | K45: 1680.996
B46: 45 | C46: H | D46: 500 | E46: 200 | F46: 9 | G46: 16 | H46: 106.12 | I46: 45182.35573 | J46: 1807.294229 | K46: 2041.604
B47: 46 | C47: H | D47: 500 | E47: 200 | F47: 9 | G47: 19 | H47: 117.58 | I47: 51377.28793 | J47: 2055.091517 | K47: 2308.049
B48: 47 | C48: H | D48: 500 | E48: 200 | F48: 9 | G48: 22 | H48: 129.04 | I48: 57413.38453 | J48: 2296.535381 | K48: 2571.056
B49: 48 | C49: H | D49: 500 | E49: 200 | F49: 12 | G49: 19 | H49: 131.44 | I49: 53842.56613 | J49: 2153.702645 | K49: 2468.132
B50: 49 | C50: H | D50: 500 | E50: 200 | F50: 12 | G50: 22 | H50: 142.72 | I50: 59783.85493 | J50: 2391.354197 | K50: 2727.008
B51: 50 | C51: H | D51: 500 | E51: 200 | F51: 12 | G51: 25 | H51: 154 | I51: 65570.83333 | J51: 2622.833333 | K51: 2982.5
B52: 51 | C52: H | D52: 500 | E52: 250 | F52: 9 | G52: 16 | H52: 122.12 | I52: 54556.00907 | J52: 2182.240363 | K52: 2428.804
B53: 52 | C53: H | D53: 500 | E53: 250 | F53: 9 | G53: 19 | H53: 136.58 | I53: 62372.65127 | J53: 2494.906051 | K53: 2764.999
B54: 53 | C54: H | D54: 500 | E54: 250 | F54: 9 | G54: 22 | H54: 151.04 | I54: 69988.87787 | J54: 2799.555115 | K54: 3096.856
B55: 54 | C55: H | D55: 500 | E55: 250 | F55: 12 | G55: 22 | H55: 164.72 | I55: 72359.34827 | J55: 2894.373931 | K55: 3252.808
B56: 55 | C56: H | D56: 500 | E56: 250 | F56: 12 | G56: 25 | H56: 179 | I56: 79685.41667 | J56: 3187.416667 | K56: 3576.25
B57: 56 | C57: H | D57: 500 | E57: 250 | F57: 12 | G57: 28 | H57: 193.28 | I57: 86818.70507 | J57: 3472.748203 | K57: 3895.408
B58: 57 | C58: H | D58: 500 | E58: 300 | F58: 12 | G58: 19 | H58: 169.44 | I58: 75833.2928 | J58: 3033.331712 | K58: 3382.032
B59: 58 | C59: H | D59: 500 | E59: 300 | F59: 12 | G59: 22 | H59: 186.72 | I59: 84934.8416 | J59: 3397.393664 | K59: 3778.608
B60: 59 | C60: H | D60: 500 | E60: 300 | F60: 12 | G60: 25 | H60: 204 | I60: 93800 | J60: 3752 | K60: 4170
B61: 60 | C61: H | D61: 500 | E61: 300 | F61: 16 | G61: 22 | H61: 204.96 | I61: 88095.4688 | J61: 3523.818752 | K61: 3986.544
B62: 61 | C62: H | D62: 500 | E62: 300 | F62: 16 | G62: 25 | H62: 222 | I62: 96837.5 | J62: 3873.5 | K62: 4372.5
B63: 62 | C63: H | D63: 500 | E63: 300 | F63: 16 | G63: 28 | H63: 239.04 | I63: 105349.4912 | J63: 4213.979648 | K63: 4753.344
B64: 63 | C64: H | D64: 550 | E64: 200 | F64: 9 | G64: 12 | H64: 95.34 | I64: 45653.9082 | J64: 1660.142116 | K64: 1913.721
B65: 64 | C65: H | D65: 550 | E65: 200 | F65: 9 | G65: 16 | H65: 110.62 | I65: 56063.00073 | J65: 2038.654572 | K65: 2312.529
B66: 65 | C66: H | D66: 550 | E66: 200 | F66: 9 | G66: 19 | H66: 122.08 | I66: 63661.78293 | J66: 2314.973925 | K66: 2607.624
B67: 66 | C67: H | D67: 550 | E67: 200 | F67: 9 | G67: 22 | H67: =(D67*E67-(E67-F67)*(D67-2*G67))/100 -> 133.54 | I67: =(D67^3*E67-(E67-F67)*(D67-2*G67)^3)/12/10000 -> 71084.53953 | J67: =I67/(D67/2)*10 -> 2584.892347 | K67: =(E67*G67*(D67-G67)+(D67-2*G67)*F67*(D67-2*G67)/4)/1000 -> 2899.281
B68: 67 | C68: H | D68: 550 | E68: 200 | F68: 12 | G68: 19 | H68: 137.44 | I68: 67017.22613 | J68: 2436.990041 | K68: 2804.232
B69: 68 | C69: H | D69: 550 | E69: 200 | F69: 12 | G69: 22 | H69: 148.72 | I69: 74323.39493 | J69: 2702.668907 | K69: 3091.308
B70: 69 | C70: H | D70: 550 | E70: 200 | F70: 12 | G70: 25 | H70: 160 | I70: 81458.33333 | J70: 2962.121212 | K70: 3375
B71: 70 | C71: H | D71: 550 | E71: 250 | F71: 9 | G71: 16 | H71: 126.62 | I71: 67472.65407 | J71: 2453.551057 | K71: 2739.729
B72: 71 | C72: H | D72: 550 | E72: 250 | F72: 9 | G72: 19 | H72: 141.08 | I72: 77060.64627 | J72: 2802.205319 | K72: 3112.074
B73: 72 | C73: H | D73: 550 | E73: 250 | F73: 9 | G73: 22 | H73: 155.54 | I73: 86426.53287 | J73: 3142.783013 | K73: 3480.081
B74: 73 | C74: H | D74: 550 | E74: 250 | F74: 12 | G74: 22 | H74: 170.72 | I74: 89665.38827 | J74: 3260.559573 | K74: 3672.108
B75: 74 | C75: H | D75: 550 | E75: 250 | F75: 12 | G75: 25 | H75: 185 | I75: 98697.91667 | J75: 3589.015152 | K75: 4031.25
B76: 75 | C76: H | D76: 550 | E76: 250 | F76: 12 | G76: 28 | H76: 199.28 | I76: 107516.2451 | J76: 3909.681639 | K76: 4386.108
B77: 76 | C77: H | D77: 550 | E77: 250 | F77: 16 | G77: 28 | H77: 219.04 | I77: 111534.7045 | J77: 4055.807438 | K77: 4630.144
B78: 77 | C78: H | D78: 550 | E78: 250 | F78: 16 | G78: 32 | H78: 237.76 | I78: 122771.6341 | J78: 4464.423059 | K78: 5088.784
B79: 78 | C79: H | D79: 550 | E79: 300 | F79: 12 | G79: 16 | H79: 158.16 | I79: 82357.1032 | J79: 2994.803753 | K79: 3368.172
B80: 79 | C80: H | D80: 550 | E80: 300 | F80: 12 | G80: 19 | H80: 175.44 | I80: 93814.9528 | J80: 3411.452829 | K80: 3813.132
B81: 80 | C81: H | D81: 550 | E81: 300 | F81: 12 | G81: 22 | H81: 192.72 | I81: 105007.3816 | J81: 3818.45024 | K81: 4252.908
B82: 81 | C82: H | D82: 550 | E82: 300 | F82: 12 | G82: 25 | H82: 210 | I82: 115937.5 | J82: 4215.909091 | K82: 4687.5
B83: 82 | C83: H | D83: 550 | E83: 300 | F83: 16 | G83: 22 | H83: 212.96 | I83: 109325.8555 | J83: 3975.485653 | K83: 4508.944
B84: 83 | C84: H | D84: 550 | E84: 300 | F84: 16 | G84: 25 | H84: 230 | I84: 120104.1667 | J84: 4367.424242 | K84: 4937.5
B85: 84 | C85: H | D85: 550 | E85: 300 | F85: 16 | G85: 28 | H85: 247.04 | I85: 130626.8779 | J85: 4750.068286 | K85: 5360.944
B86: 85 | C86: H | D86: 600 | E86: 200 | F86: 9 | G86: 12 | H86: 99.84 | I86: 55827.7632 | J86: 1860.92544 | K86: 2157.696
B87: 86 | C87: H | D87: 600 | E87: 200 | F87: 9 | G87: 16 | H87: 115.12 | I87: 68326.39573 | J87: 2277.546524 | K87: 2594.704
B88: 87 | C88: H | D88: 600 | E88: 200 | F88: 9 | G88: 19 | H88: 126.58 | I88: 77472.27793 | J88: 2582.409264 | K88: 2918.449
B89: 88 | C89: H | D89: 600 | E89: 200 | F89: 9 | G89: 22 | H89: 138.04 | I89: 86424.94453 | J89: 2880.831484 | K89: 3238.756
B90: 89 | C90: H | D90: 600 | E90: 200 | F90: 12 | G90: 19 | H90: 143.44 | I90: 81909.88613 | J90: 2730.329538 | K90: 3155.332
B91: 90 | C91: H | D91: 600 | E91: 200 | F91: 12 | G91: 22 | H91: 154.72 | I91: 90721.93493 | J91: 3024.064498 | K91: 3470.608
B92: 91 | C92: H | D92: 600 | E92: 200 | F92: 12 | G92: 25 | H92: 166 | I92: 99345.83333 | J92: 3311.527778 | K92: 3782.5
B93: 92 | C93: H | D93: 600 | E93: 200 | F93: 12 | G93: 28 | H93: 177.28 | I93: 107783.6117 | J93: 3592.787058 | K93: 4091.008
B94: 93 | C94: H | D94: 600 | E94: 250 | F94: 9 | G94: 16 | H94: 131.12 | I94: 81972.04907 | J94: 2732.401636 | K94: 3061.904
B95: 94 | C95: H | D95: 600 | E95: 250 | F95: 9 | G95: 19 | H95: 145.58 | I95: 93512.14127 | J95: 3117.071376 | K95: 3470.399
B96: 95 | C96: H | D96: 600 | E96: 250 | F96: 12 | G96: 19 | H96: 162.44 | I96: 97949.74947 | J96: 3264.991649 | K96: 3707.282
B97: 96 | C97: H | D97: 600 | E97: 250 | F97: 12 | G97: 22 | H97: 176.72 | I97: 109105.4283 | J97: 3636.847609 | K97: 4106.408
B98: 97 | C98: H | D98: 600 | E98: 250 | F98: 12 | G98: 25 | H98: 191 | I98: 120022.9167 | J98: 4000.763889 | K98: 4501.25
B99: 98 | C99: H | D99: 600 | E99: 250 | F99: 12 | G99: 28 | H99: 205.28 | I99: 130704.7851 | J99: 4356.826169 | K99: 4891.808
B100: 99 | C100: H | D100: 600 | E100: 250 | F100: 16 | G100: 28 | H100: 227.04 | I100: 136071.0912 | J100: 4535.70304 | K100: 5187.744
B101: 100 | C101: H | D101: 600 | E101: 250 | F101: 16 | G101: 32 | H101: 245.76 | I101: 149718.2208 | J101: 4990.60736 | K101: 5693.184
B102: 101 | C102: H | D102: 600 | E102: 300 | F102: 12 | G102: 19 | H102: 181.44 | I102: 113989.6128 | J102: 3799.65376 | K102: 4259.232
B103: 102 | C103: H | D103: 600 | E103: 300 | F103: 12 | G103: 22 | H103: 198.72 | I103: 127488.9216 | J103: 4249.63072 | K103: 4742.208
B104: 103 | C104: H | D104: 600 | E104: 300 | F104: 12 | G104: 25 | H104: 216 | I104: 140700 | J104: 4690 | K104: 5220
B105: 104 | C105: H | D105: 600 | E105: 300 | F105: 12 | G105: 28 | H105: 233.28 | I105: 153625.9584 | J105: 5120.86528 | K105: 5692.608
B106: 105 | C106: H | D106: 600 | E106: 300 | F106: 16 | G106: 22 | H106: 220.96 | I106: 133218.2421 | J106: 4440.608071 | K106: 5051.344
B107: 106 | C107: H | D107: 600 | E107: 300 | F107: 16 | G107: 25 | H107: 238 | I107: 146245.8333 | J107: 4874.861111 | K107: 5522.5
B108: 107 | C108: H | D108: 600 | E108: 300 | F108: 16 | G108: 28 | H108: 255.04 | I108: 158992.2645 | J108: 5299.742151 | K108: 5988.544
B109: 108 | C109: H | D109: 600 | E109: 300 | F109: 16 | G109: 32 | H109: 277.76 | I109: 175555.4475 | J109: 5851.848249 | K109: 6601.984

Sheet list2
B1: no. | C1: 規格 | D1: H | E1: B | F1: t1 | G1: - | H1: A | I1: Ix | J1: Zx | K1: Zpx
B2: 1 | C2: BOX | D2: 150 | E2: =D2 -> 150 | F2: 6 | H2: =(D2*E2-(D2-2*F2)*(E2-2*F2))/100 -> 34.56 | I2: =(E2*D2^3/12-(E2-2*F2)*(D2-2*F2)^3/12)/10000 -> 1196.4672 | J2: =I2/(D2/2)*10 -> 159.52896 | K2: =(E2*F2*(D2-F2)+(D2-2*F2)*F2*(D2-2*F2)/2)/1000 -> 186.732
B3: 2 | C3: BOX | D3: 150 | E3: =D3 -> 150 | F3: 9 | H3: =(D3*E3-(D3-2*F3)*(E3-2*F3))/100 -> 50.76 | I3: =(E3*D3^3/12-(E3-2*F3)*(D3-2*F3)^3/12)/10000 -> 1688.7852 | J3: =I3/(D3/2)*10 -> 225.17136 | K3: =(E3*F3*(D3-F3)+(D3-2*F3)*F3*(D3-2*F3)/2)/1000 -> 268.758
B4: 3 | C4: BOX | D4: 150 | E4: 150 | F4: 12 | H4: 66.24 | I4: 2118.3552 | J4: 282.44736 | K4: 343.656
B5: 4 | C5: BOX | D5: 175 | E5: 175 | F5: 6 | H5: 40.56 | I5: 1933.1572 | J5: 220.9322514 | K5: 257.157
B6: 5 | C6: BOX | D6: 175 | E6: 175 | F6: 9 | H6: 59.76 | I6: 2752.6452 | J6: 314.5880229 | K6: 372.3705
B7: 6 | C7: BOX | D7: 175 | E7: 175 | F7: 12 | H7: 78.24 | I7: 3483.3752 | J7: 398.1000229 | K7: 479.106
B8: 7 | C8: BOX | D8: 200 | E8: 200 | F8: 6 | H8: 46.56 | I8: 2923.3472 | J8: 292.33472 | K8: 338.832
B9: 8 | C9: BOX | D9: 200 | E9: 200 | F9: 9 | H9: 68.76 | I9: 4190.0052 | J9: 419.00052 | K9: 492.858
B10: 9 | C10: BOX | D10: 200 | E10: 200 | F10: 12 | H10: 90.24 | I10: 5337.3952 | J10: 533.73952 | K10: 637.056
B11: 10 | C11: BOX | D11: 250 | E11: 250 | F11: 6 | H11: 58.56 | I11: 5814.2272 | J11: 465.138176 | K11: 535.932
B12: 11 | C12: BOX | D12: 250 | E12: 250 | F12: 9 | H12: 86.76 | I12: 8410.2252 | J12: 672.818016 | K12: 784.458
B13: 12 | C13: BOX | D13: 250 | E13: 250 | F13: 12 | H13: 114.24 | I13: 10812.4352 | J13: 864.994816 | K13: 1020.456
B14: 13 | C14: BOX | D14: 250 | E14: 250 | F14: 16 | H14: 149.76 | I14: 13730.9952 | J14: 1098.479616 | K14: 1316.192
B15: 14 | C15: BOX | D15: 300 | E15: 300 | F15: 6 | H15: 70.56 | I15: 10169.1072 | J15: 677.94048 | K15: 778.032
B16: 15 | C16: BOX | D16: 300 | E16: 300 | F16: 9 | H16: 104.76 | I16: 14799.4452 | J16: 986.62968 | K16: 1143.558
B17: 16 | C17: BOX | D17: 300 | E17: 300 | F17: 12 | H17: 138.24 | I17: 19143.4752 | J17: 1276.23168 | K17: 1493.856
B18: 17 | C18: BOX | D18: 300 | E18: 300 | F18: 16 | H18: 181.76 | I18: 24510.94187 | J18: 1634.062791 | K18: 1937.792
B19: 18 | C19: BOX | D19: 300 | E19: 300 | F19: 19 | H19: 213.56 | I19: 28233.34387 | J19: 1882.222924 | K19: 2253.818
B20: 19 | C20: BOX | D20: 350 | E20: 350 | F20: 9 | H20: 122.76 | I20: 23807.6652 | J20: 1360.438011 | K20: 1570.158
B21: 20 | C21: BOX | D21: 350 | E21: 350 | F21: 12 | H21: 162.24 | I21: 30930.5152 | J21: 1767.458011 | K21: 2057.256
B22: 21 | C22: BOX | D22: 350 | E22: 350 | F22: 16 | H22: 213.76 | I22: 39834.88853 | J22: 2276.279345 | K22: 2679.392
B23: 22 | C23: BOX | D23: 350 | E23: 350 | F23: 19 | H23: 251.56 | I23: 46086.63053 | J23: 2633.521745 | K23: 3125.918
B24: 23 | C24: BOX | D24: 350 | E24: 350 | F24: 22 | H24: 288.64 | I24: 51987.91253 | J24: 2970.737859 | K24: 3555.596
B25: 24 | C25: BOX | D25: 400 | E25: 400 | F25: 9 | H25: 140.76 | I25: 35884.8852 | J25: 1794.24426 | K25: 2064.258
B26: 25 | C26: BOX | D26: 400 | E26: 400 | F26: 12 | H26: 186.24 | I26: 46773.5552 | J26: 2338.67776 | K26: 2710.656
B27: 26 | C27: BOX | D27: 400 | E27: 400 | F27: 16 | H27: 245.76 | I27: 60502.8352 | J27: 3025.14176 | K27: 3540.992
B28: 27 | C28: BOX | D28: 400 | E28: 400 | F28: 19 | H28: 289.56 | I28: 70228.9172 | J28: 3511.44586 | K28: 4140.518
B29: 28 | C29: BOX | D29: 400 | E29: 400 | F29: 22 | H29: 332.64 | I29: 79483.2192 | J29: 3974.16096 | K29: 4720.496
B30: 29 | C30: BOX | D30: 450 | E30: 450 | F30: 12 | H30: 210.24 | I30: 67272.5952 | J30: 2989.89312 | K30: 3454.056
B31: 30 | C31: BOX | D31: 450 | E31: 450 | F31: 16 | H31: 277.76 | I31: 87314.78187 | J31: 3880.656972 | K31: 4522.592
B32: 31 | C32: BOX | D32: 450 | E32: 450 | F32: 19 | H32: 327.56 | I32: 101610.2039 | J32: 4516.009061 | K32: 5297.618
B33: 32 | C33: BOX | D33: 450 | E33: 450 | F33: 22 | H33: 376.64 | I33: 115294.5259 | J33: 5124.20115 | K33: 6050.396

Sheet 【出力】断面
A1: 断面名 | B1: 種別 | C1: 規格 | D1: 断面形状 | H1: 断面積 | I1: 断面２次 | J1: 断面係数 | K1: 塑性断面係数 | L1: 断面２次 | M1: 断面係数 | N1: 塑性断面係数
A2: secTag | B2: type | C2: standard | D2: H | E2: B | F2: t1 | G2: t2 | H2: A | I2: Ix | J2: Zx | K2: Zpx | L2: Iy | M2: Zy | N2: Zpy
A3: G1 | B3: list1 | C3: H | D3: 500 | E3: 200 | F3: 9 | G3: 12 | H3: 90.84 | I3: 36671.8032 | J3: 1466.872128 | K3: 1680.996 | L3: 0 | M3: 0 | N3: 0
A4: C1 | B4: list2 | C4: BOX | D4: 400 | E4: 400 | F4: 9 | G4: 0 | H4: 140.76 | I4: 35884.8852 | J4: 1794.24426 | K4: 2064.258 | L4: 0 | M4: 0 | N4: 0

Sheet 【出力】鋼材量
A1: 総体積
A2: Volume
A3: 213432

Sheet 【出力】部材力
A1: 組み合わせケース名 | B1: 要素名 | C1: 部材力
A2: combLoadCaseTag | B2: eleTag | C2: N | D2: Myi | E2: Mzi | F2: Myj | G2: Mzj | H2: Qyi | I2: Qzi | J2: Qyj | K2: Qzj
A3: DL | B3: EG1 | C3: -22418.09225 | D3: -11209046.12 | E3: 0 | F3: -12790953.88 | G3: 0 | H3: 0 | I3: 120000 | J3: 0 | K3: 1.171429176e-09
A4: DL | B4: EG2 | C4: -22418.09225 | D4: 12790953.88 | E4: 0 | F4: 11209046.12 | G4: 0 | H4: 0 | I4: -1.105945557e-09 | J4: 0 | K4: 120000
A5: DL | B5: EC1 | C5: -120000 | D5: 9.313225746e-10 | E5: 0 | F5: 11209046.12 | G5: 0 | H5: 0 | I5: -22418.09225 | J5: 0 | K5: 22418.09225
A6: DL | B6: EC2 | C6: -120000 | D6: -9.313225746e-10 | E6: 0 | F6: -11209046.12 | G6: 0 | H6: 0 | I6: 22418.09225 | J6: 0 | K6: -22418.09225
A7: DL+EX | B7: EG1 | C7: -46390.94192 | D7: 804529.0392 | E7: 0 | F7: -12804529.04 | G7: 0 | H7: 0 | I7: 90000 | J7: 0 | K7: 30000
A8: DL+EX | B8: EG2 | C8: -46390.94192 | D8: 12804529.04 | E8: 0 | F8: 23195470.96 | G8: 0 | H8: 0 | I8: -30000 | J8: 0 | K8: 150000
A9: DL+EX | B9: EC1 | C9: -90000 | D9: 0 | E9: 0 | F9: -804529.0392 | G9: 0 | H9: 0 | I9: 1609.058078 | J9: 0 | K9: -1609.058078
A10: DL+EX | B10: EC2 | C10: -150000 | D10: 1.11758709e-08 | E10: 0 | F10: -23195470.96 | G10: 0 | H10: 0 | I10: 46390.94192 | J10: 0 | K10: -46390.94192
A11: DL-EX | B11: EG1 | C11: 1554.757427 | D11: -23222621.29 | E11: 0 | F11: -12777378.71 | G11: 0 | H11: 0 | I11: 150000 | J11: 0 | K11: -30000
A12: DL-EX | B12: EG2 | C12: 1554.757427 | D12: 12777378.71 | E12: 0 | F12: -777378.7133 | G12: 0 | H12: 0 | I12: 30000 | J12: 0 | K12: 90000
A13: DL-EX | B13: EC1 | C13: -150000 | D13: 1.862645149e-09 | E13: 0 | F13: 23222621.29 | G13: 0 | H13: 0 | I13: -46445.24257 | J13: 0 | K13: 46445.24257
A14: DL-EX | B14: EC2 | C14: -90000 | D14: -1.303851604e-08 | E14: 0 | F14: 777378.7133 | G14: 0 | H14: 0 | I14: -1554.757427 | J14: 0 | K14: 1554.757427

Sheet 【出力】応力度
A1: 組み合わせケース名 | B1: 要素名 | C1: 許容応力度 | D1: 許容応力度 | E1: 曲げ応力度 | G1: 圧縮応力度 | H1: 許容曲げ応力度比 | J1: 許容圧縮応力度比 | K1: 組み合わせ応力度比
A2: combLoadCaseTag | B2: eleTag | C2: fb | D2: fc | E2: σbi | F2: σbj | G2: σc | H2: σbi/fb | I2: σbj/fb | J2: σc/fc | K2: σb/fb+σc/fc
A3: DL | B3: EG1 | C3: 23500 | D3: 23500 | E3: -7641.460977 | F3: -8719.883371 | G3: 0 | H3: 0.3251685522 | I3: 0.3710588668 | J3: 0 | K3: 0.3710588668
A4: DL | B4: EG2 | C4: 23500 | D4: 23500 | E4: 8719.883371 | F4: 7641.460977 | G4: 0 | H4: 0.3710588668 | I4: 0.3251685522 | J4: 0 | K4: 0.3710588668
A5: DL | B5: EC1 | C5: 29500 | D5: 29500 | E5: 5.190611977e-13 | F5: 6247.224179 | G5: -852.514919 | H5: 1.759529484e-17 | I5: 0.2117703111 | J5: 0.02889881081 | K5: 0.240669122
A6: DL | B6: EC2 | C6: 29500 | D6: 29500 | E6: -5.190611977e-13 | F6: -6247.224179 | G6: -852.514919 | H6: 1.759529484e-17 | I6: 0.2117703111 | J6: 0.02889881081 | K6: 0.240669122
A7: DL+EX | B7: EG1 | C7: 23500 | D7: 23500 | E7: 548.4656936 | F7: -8729.137867 | G7: 0 | H7: 0.02333896569 | I7: 0.3714526752 | J7: 0 | K7: 0.3714526752
A8: DL+EX | B8: EG2 | C8: 23500 | D8: 23500 | E8: 8729.137867 | F8: 15812.87865 | G8: 0 | H8: 0.3714526752 | I8: 0.6728884534 | J8: 0 | K8: 0.6728884534
A9: DL+EX | B9: EC1 | C9: 29500 | D9: 29500 | E9: 0 | F9: -448.3943781 | G9: -639.3861893 | H9: 0 | I9: 0.01519980943 | J9: 0.02167410811 | K9: 0.03687391754
A10: DL+EX | B10: EC2 | C10: 29500 | D10: 29500 | E10: 6.228734373e-12 | F10: -12927.71084 | G10: -1065.643649 | H10: 2.111435381e-16 | I10: 0.4382274859 | J10: 0.03612351352 | K10: 0.4743509995
A11: DL-EX | B11: EG1 | C11: 23500 | D11: 23500 | E11: -15831.38765 | F11: -8710.628874 | G11: 0 | H11: 0.6736760701 | I11: 0.3706650585 | J11: 0 | K11: 0.6736760701
A12: DL-EX | B12: EG2 | C12: 23500 | D12: 23500 | E12: 8710.628874 | F12: -529.9567007 | G12: 0 | H12: 0.3706650585 | I12: 0.02255134897 | J12: 0 | K12: 0.3706650585
A13: DL-EX | B13: EC1 | C13: 29500 | D13: 29500 | E13: 1.038122395e-12 | F13: 12942.84274 | G13: -1065.643649 | H13: 3.519058968e-17 | I13: 0.4387404317 | J13: 0.03612351352 | K13: 0.4748639452
A14: DL-EX | B14: EC2 | C14: 29500 | D14: 29500 | E14: -7.266856768e-12 | F14: 433.2624775 | G14: -639.3861893 | H14: 2.463341277e-16 | I14: 0.01468686364 | J14: 0.02167410811 | K14: 0.03636097175

Sheet 【出力】節点変位
A1: 組み合わせケース名 | B1: 節点名 | C1: 並進 | F1: 回転
A2: combLoadCaseTag | B2: nodeTag | C2: x | D2: y | E2: z | F2: x | G2: y | H2: z
A3: DL | B3: N1 | C3: 0 | D3: 0 | E3: 0 | F3: 0 | G3: -0.001260130316 | H3: 0
A4: DL | B4: N2 | C4: 0.004815347757 | D4: 0 | E4: -0.02079304681 | F4: 0 | G4: 0.002549152719 | H4: 0
A5: DL | B5: N3 | C5: 9.159339953e-14 | D5: 0 | E5: -0.9562845818 | F5: 0 | G5: -3.941074897e-17 | H5: 0
A6: DL | B6: N4 | C6: -0.004815347756 | D6: 0 | E6: -0.02079304681 | F6: 0 | G6: -0.002549152719 | H6: 0
A7: DL | B7: N5 | C7: 0 | D7: 0 | E7: 0 | F7: 0 | G7: 0.001260130316 | H7: 0
A8: DL+EX | B8: N1 | C8: 0 | D8: 0 | E8: 0 | F8: 0 | G8: 0.004971087557 | H8: 0
A9: DL+EX | B9: N2 | C9: 2.439975244 | D9: 0 | E9: -0.0155947851 | F9: 0 | G9: 0.004697676351 | H9: 0
A10: DL+EX | B10: N3 | C10: 2.430010591 | D10: 0 | E10: -0.9577291862 | F10: 0 | G10: -0.001051156824 | H10: 0
A11: DL+EX | B11: N4 | C11: 2.420045938 | D11: 0 | E11: -0.02599130851 | F11: 0 | G11: -0.000415075131 | H11: 0
A12: DL+EX | B12: N5 | C12: 0 | D12: 0 | E12: 0 | F12: 0 | G12: 0.007467675378 | H12: 0
A13: DL-EX | B13: N1 | C13: 0 | D13: 0 | E13: 0 | F13: 0 | G13: -0.00749134819 | H13: 0
A14: DL-EX | B14: N2 | C14: -2.430344549 | D14: 0 | E14: -0.02599130851 | F14: 0 | G14: 0.0004006290878 | H14: 0
A15: DL-EX | B15: N3 | C15: -2.430010591 | D15: 0 | E15: -0.9548399775 | F15: 0 | G15: 0.001051156824 | H15: 0
A16: DL-EX | B16: N4 | C16: -2.429676633 | D16: 0 | E16: -0.0155947851 | F16: 0 | G16: -0.004683230308 | H16: 0
A17: DL-EX | B17: N5 | C17: 0 | D17: 0 | E17: 0 | F17: 0 | G17: -0.004947414745 | H17: 0

Sheet 【入力】変数定義
B1: 設計変数名 | C1: 種別 | D1: パラメータ | E1: 初期値 | F1: 固定フラグ
A2: C | B2: varTag | C2: type | D2: no. | E2: iniVal | F2: isFixed
B3: x1 | C3: list1 | D3: 1 | E3: 1 | F3: FALSE
B4: x2 | C4: list2 | D4: 1 | E4: 1 | F4: FALSE

Sheet 【入力】断面割り当て
B1: 断面名 | C1: 設計変数名
A2: C | B2: secTag | C2: var1Tag
B3: G1 | C3: x1
B4: C1 | C4: x2

Sheet 【入力】節点
B1: 節点名 | C1: 座標 | F1: 並進拘束 | I1: 回転拘束
A2: C | B2: nodeTag | C2: x | D2: y | E2: z | F2: x | G2: y | H2: z | I2: x | J2: y | K2: z
B3: N1 | C3: 0 | D3: 0 | E3: 0 | F3: 1 | G3: 1 | H3: 1 | I3: 1 | J3: 0 | K3: 1
B4: N2 | C4: 0 | D4: 0 | E4: 500 | F4: 0 | G4: 1 | H4: 0 | I4: 1 | J4: 0 | K4: 1
B5: N3 | C5: 400 | D5: 0 | E5: 500 | F5: 0 | G5: 1 | H5: 0 | I5: 1 | J5: 0 | K5: 1
B6: N4 | C6: 800 | D6: 0 | E6: 500 | F6: 0 | G6: 1 | H6: 0 | I6: 1 | J6: 0 | K6: 1
B7: N5 | C7: 800 | D7: 0 | E7: 0 | F7: 1 | G7: 1 | H7: 1 | I7: 1 | J7: 0 | K7: 1

Sheet 【入力】座標変換規則
B1: 座標変換規則名 | C1: 第3軸ベクトル
A2: C | B2: crdTag | C2: x | D2: y | E2: z
B3: TGX | C3: 0 | D3: 0 | E3: 1
B4: TC | C4: -1 | D4: 0 | E4: 0

Sheet 【入力】材料
B1: 材料名 | C1: 種別 | D1: 降伏点 | E1: ヤング係数 | F1: 降伏後剛性比
A2: C | B2: matTag | C2: matType | D2: Fy | E2: E0 | F2: a(=E1/E0)
B3: SN400 | C3: Steel1 | D3: 23500 | E3: 20500000 | F3: 0.01
B4: BCR295 | C4: Steel1 | D4: 29500 | E4: 20500000 | F4: 0.01

Sheet 【入力】要素
B1: 要素名 | C1: 種別 | D1: 節点タグ | F1: 材料タグ | G1: 断面タグ | H1: 座標変換タグ
A2: C | B2: eleTag | C2: type | D2: iNodeTag | E2: jNodeTag | F2: matTag | G2: secTag | H2: crdTag
B3: EG1 | C3: girder | D3: N2 | E3: N3 | F3: SN400 | G3: G1 | H3: TGX
B4: EG2 | C4: girder | D4: N3 | E4: N4 | F4: SN400 | G4: G1 | H4: TGX
B5: EC1 | C5: column | D5: N1 | E5: N2 | F5: BCR295 | G5: C1 | H5: TC
B6: EC2 | C6: column | D6: N5 | E6: N4 | F6: BCR295 | G6: C1 | H6: TC

Sheet 【入力】節点荷重
B1: 荷重ケース名 | C1: 節点タグ | D1: 節点荷重
A2: C | B2: loadCaseTag | C2: nodeTag | D2: Px | E2: Py | F2: Pz | G2: Mx | H2: My | I2: Mz
B3: EX | C3: N2 | D3: 48000

Sheet 【入力】要素荷重
B1: 荷重ケース名 | C1: 要素タグ | D1: 種別 | E1: 荷重パラメータ
A2: C | B2: locaCaseTag | C2: eleTag | D2: loadPattern | E2: prm1 | F2: prm2 | G2: prm3 | H2: prm4 | I2: prm5 | J2: prm6
B3: DL | C3: EG1 | D3: beamUniform | E3: 300
B4: DL | C4: EG2 | D4: beamUniform | E4: 300

Sheet 【入力】解析ケース
B1: 組み合わせケース名 | C1: 種別 | D1: 荷重ケースタグ | E1: 倍率
A2: C | B2: combLoadCaseTag | C2: Pattern | D2: loadCaseTag | E2: prm
B3: DL | C3: LT | D3: DL | E3: 1
B4: DL+EX | C4: STX | D4: DL | E4: 1
B5: DL+EX | C5: STX | D5: EX | E5: 1
B6: DL-EX | C6: STX | D6: DL | E6: 1
B7: DL-EX | C7: STX | D7: EX | E7: -1

Sheet 【入力】設定
A1: 単位：長さ | B1: cm
A2: 単位：力 | B2: N
A3: 最大数：規格断面リスト | B3: 5
A4: 最大行数：節点 | B4: 10
A5: 最大行数：座標変換規則 | B5: 10
A6: 最大行数：材料 | B6: 10
A7: 最大行数：規格断面 | B7: 1000
A8: 最大行数：断面 | B8: 10
A9: 最大行数：断面割り当て | B9: 10
A10: 最大行数：要素 | B10: 10
A11: 最大行数：節点荷重 | B11: 10
A12: 最大行数：要素荷重 | B12: 10
A13: 最大行数：解析ケース | B13: 10
A14: 最大行数：設計変数 | B14: 10
